lending/lending_fUSD_20240206
["ID","MTS","AMOUNT","RATE_DAILY","PERIOD"]
[313351754,1707211832343,-150.0,0.00022737,2]
[313351755,1707211832353,-150.0,0.00022737,2]
[313351756,1707211832362,-150.0,0.00022738,2]
[313351757,1707211832373,-499.99,0.00022738,2]
[313351758,1707211832383,-714.83,0.00022738,2]
[313351759,1707211832393,-19603.59148349,0.00022743,2]
[313351760,1707211832407,-482.22900367,0.00022743,2]
[313351761,1707211832428,-724.81302803,0.00022743,2]
[313351762,1707211832438,-675.18697197,0.00022743,2]
[313351763,1707211832451,-37.16302803,0.00022743,2]
[313351764,1707211832461,-547.55809366,0.00022745,2]
[313351765,1707211832483,-173.43190634,0.00022745,2]
[313351766,1707211832494,-150.0,0.00022748,2]
[313351767,1707211832503,-150.0,0.00022748,2]
[313351768,1707211832512,-150.0,0.0002278,2]
[313351769,1707211832521,-1711.80569067,0.00022788,2]
[313351770,1707211832531,-405.72658462,0.00022797,2]
[313351771,1707211832541,-4277.76999894,0.00022798,2]
[313351772,1707211838210,-7991.52747125,0.00022798,2]
[313351773,1707211838266,-651.59,0.00022798,2]
[313351774,1707211838941,-772.68811606,0.00022798,2]
[313351775,1707211838959,-443.83778674,0.00022798,2]
[313351776,1707211838976,-20157.4984,0.00022798,2]
[313351777,1707211838990,-4203.73320046,0.00022798,2]
[313351778,1707211839075,-4760.63262655,0.00022798,2]
[313351779,1707211839086,-150.0,0.00022803,2]
[313351780,1707211839096,-1500.0,0.00022807,2]
[313351781,1707211839106,-698.94081064,0.00022815,2]
[313351782,1707211839137,-101.05918936,0.00022815,2]
[313351783,1707211839146,-433.8811122,0.00022816,2]
[313351784,1707211839165,-366.1188878,0.00022816,2]
[313351785,1707211839175,-1493.55870299,0.00022863,2]
[313351786,1707211839189,-6.44129701,0.00022863,2]
[313351787,1707211839199,-184.48898336,0.00022896,2]
[313351788,1707211839210,-115.19608328,0.00022896,2]
[313351789,1707211839223,-391.76131447,0.00022896,2]
[313351790,1707211839234,-601.14315988,0.00022898,2]
[313351791,1707211839248,-333.42,0.00022898,2]
[313351792,1707211839261,-2568.14799601,0.00022898,2]
[313351793,1707211839274,-2119.7521,0.00022898,2]
[313351794,1707211839287,-20599.6055744,0.00022898,2]
[313351796,1707211839301,-1079.94887828,0.00022898,2]
[313351810,1707211840924,-1889.55629042,0.00022898,2]
[313351817,1707211845421,-6538.97705039,0.00022898,2]
[313351818,1707211845434,-969.87266123,0.00022898,2]
[313351819,1707211845658,-875.27810035,0.00022898,2]
[313351820,1707211845670,-62846.55121531,0.00022898,2]
[313351821,1707211845682,-636.2014512,0.00022898,2]
[313351822,1707211845693,-1584.95097296,0.00022898,2]
[313351823,1707211845762,-1372.98594957,0.00022898,2]
[313351824,1707211845771,-2218.6329,0.00022899,2]
[313351825,1707211845781,-227.4459,0.00022899,2]
[313351826,1707211845790,-2585.42812686,0.000229,2]
[313351827,1707211845805,-2273.93617314,0.000229,2]
[313351828,1707211845814,-1000.0,0.000229,2]
[313351829,1707211845824,-700.01577309,0.000229,2]
[313351831,1707211845941,-150.0,0.00022906,2]
[313351832,1707211845953,-154.67508654,0.00022907,2]
[313351833,1707211845964,-193.03873203,0.00022907,2]
[313351834,1707211845974,-150.0,0.00022912,2]
[313351835,1707211845985,-150.0,0.00022912,2]
[313351836,1707211845995,-150.0,0.00022929,2]
[313351837,1707211846005,-150.0,0.00022957,2]
[313351838,1707211846015,-150.0,0.00022967,2]
[313351840,1707211846026,-420.90086266,0.00022983,2]
[313351842,1707211846037,-1920.69,0.00022983,2]
[313351844,1707211846047,-19798.0,0.00022983,2]
[313351845,1707211846057,-1232.0,0.00022983,2]
[313351846,1707211846067,-2954.18112679,0.00022988,2]
[313351847,1707211846076,-155.92234819,0.00022994,2]
[313351848,1707211846087,-155.39964942,0.00022994,2]
[313351849,1707211846096,-155.44821257,0.00022994,2]
[313351850,1707211846105,-157.78864269,0.00022994,2]
[313351851,1707211846116,-156.20974732,0.00022994,2]
[313351852,1707211846126,-157.36866261,0.00022994,2]
[313351853,1707211846135,-215.90932301,0.00022994,2]
[313351854,1707211846145,-209.58787596,0.00022994,2]
[313351856,1707211846154,-2443.33086728,0.00022994,2]
[313351858,1707211846167,-545.54257087,0.00022995,2]
[313351860,1707211846177,-298.05134141,0.00022995,2]
[313351862,1707211846186,-202.44281566,0.00022995,2]
[313351864,1707211846196,-966.19765809,0.00022995,2]
[313351866,1707211846207,-7669.77616698,0.00022995,2]
[313351868,1707211846216,-321.04868877,0.00022996,2]
[313351869,1707211846225,-1259.93381193,0.00022996,2]
[313351872,1707211846237,-500.0,0.00022996,2]
[313351874,1707211846248,-837.93466786,0.00022996,2]
[313351877,1707211846263,-943.24512146,0.00022996,2]
[313351878,1707211846274,-1909.90824921,0.00022996,2]
[313351879,1707211846285,-1051.547,0.00022996,2]
[313351880,1707211846297,-373.45767937,0.00022996,2]
[313351881,1707211846311,-2902.93965498,0.00022996,2]
[313351882,1707211846323,-6743.90894464,0.00022996,2]
[313351883,1707211846334,-16528.77952573,0.00022996,2]
[313351884,1707211846343,-3148.06260981,0.00022996,2]
[313351885,1707211846352,-501.41289716,0.00022996,2]
[313351886,1707211846361,-173.5066908,0.00022996,2]
[313351887,1707211846370,-339.16151334,0.00022996,2]
[313351888,1707211846378,-155.80915845,0.00022996,2]
[313351889,1707211846387,-201.40993587,0.00022996,2]
[313351890,1707211846396,-165.94888058,0.00022996,2]
[313351891,1707211846406,-224.0730635,0.00022996,2]
[313351892,1707211846416,-10586.42210638,0.00022996,2]
[313351893,1707211846425,-156.79784151,0.00022996,2]
[313351894,1707211846436,-2148.1042989,0.00022996,2]
[313351895,1707211846445,-5472.51431834,0.00022996,2]
[313351896,1707211846454,-198.78035499,0.00022996,2]
[313351897,1707211846466,-500.50400422,0.00022996,2]
[313351898,1707211846475,-156.22877382,0.00022996,2]
[313351899,1707211846485,-163.08390295,0.00022997,2]
[313351900,1707211846494,-430.92778327,0.00022997,2]
[313351901,1707211846503,-3073.46606203,0.00022997,2]
[313351902,1707211846512,-178.58971379,0.00022997,2]
[313351903,1707211846522,-205.44929766,0.00022997,2]
[313351904,1707211846532,-264.87878158,0.00022997,2]
[313351905,1707211846541,-1161.00623494,0.00022997,2]
[313351906,1707211846551,-2185.92531246,0.00022997,2]
[313351907,1707211846561,-155.8254601,0.00022997,2]
[313351908,1707211846570,-481.69275539,0.00022997,2]
[313351909,1707211846580,-349.15767598,0.00022997,2]
[313351910,1707211846590,-6226.28024989,0.00022998,2]
[313351911,1707211846599,-500.0,0.00022998,2]
[313351912,1707211846608,-2802.52747424,0.00022998,2]
[313351913,1707211846618,-126457.49932033,0.00022998,2]
[313351914,1707211846627,-245.85810557,0.00022998,2]
[313351915,1707211846637,-28959.21629469,0.00022999,2]
[313351916,1707211846646,-151.05979893,0.00022999,2]
[313351917,1707211846656,-1513.87987569,0.00022999,2]
[313351918,1707211846666,-158366.65295041,0.00023,2]
[313351919,1707211846675,-150.0,0.00023,2]
[313351920,1707211846684,-736.48,0.00023,2]
[313351921,1707211846694,-183985.0115214,0.00023,2]
[313351922,1707211846707,-664.00152642,0.00023,2]
[313351923,1707211846719,-592.53143083,0.00023,2]
[313351924,1707211846808,-9069.22601368,0.00023,2]
[313351925,1707211846818,-19572.86579704,0.00023,2]
[313351926,1707211846886,-885.0,0.00023,2]
[313351929,1707211846955,-273.40047181,0.00022897,2]
[313351930,1707211846965,-1941.60952819,0.00023,2]
[313351931,1707211952569,2204.38679169,0.00022308,2]
[313351932,1707211974525,184.67574421,0.00020698,2]
[313351933,1707212075365,586.1,0.00021991,2]
[313351934,1707212263379,30830.06,0.00021918,2]
[313351935,1707212341458,200.0,0.00021939,2]
[313351936,1707212346860,430.25,0.00021939,2]
[313351937,1707212363502,163.17,0.00020051,2]
[313351938,1707212363546,163.17,0.00022314,2]
[313351939,1707212371326,305.59,0.00021968,2]
[313351940,1707212416080,163.32,0.00022082,2]
[313351941,1707212416312,163.32,0.00022466,2]
[313351942,1707212424339,1078.16839519,0.00022485,2]
[313351943,1707212435499,4175.51,0.00021918,2]
[313351944,1707212498937,676.49072932,0.00021918,2]
[313351945,1707212505509,23900.0,0.00021938,2]
[313351946,1707212525164,166.74,0.00021918,2]
[313351947,1707212531414,521.5,0.00021938,2]
[313351948,1707212621540,173.89,0.00017821,2]
[313351949,1707212649765,202.57,0.00022309,2]
[313351950,1707212761158,358.54,0.00021851,2]
[313351951,1707212801343,1164.82182331,0.00022437,2]
[313351952,1707212809093,-386.0160739,0.00022535,2]
[313351953,1707212809113,-273.40047181,0.00022536,2]
[313351954,1707212809133,-161.39,0.00022537,2]
[313351955,1707212809154,-725.2,0.00022584,2]
[313351956,1707212809173,-738.12,0.00022616,2]
[313351957,1707212809194,-722.09,0.00022646,2]
[313351958,1707212809214,-88.58636298,0.00022651,2]
[313351959,1707212811816,158.74,0.00020136,2]
[313351960,1707212812025,158.74,0.000224,2]
[313351961,1707212849645,160.59,0.00022444,2]
[313351962,1707212876338,2000.0,0.00022309,2]
[313351963,1707212879503,528.41,0.000222,2]
[313351964,1707212895931,1000.0,0.00022245,2]
[313351965,1707212916759,7084.94,0.00022245,2]
[313351966,1707212926047,163.1,0.00022245,2]
[313351975,1707213031417,-273.40047181,0.0002265,2]
[313351976,1707213031426,-731.18,0.00022651,2]
[313351977,1707213031435,-157.32998881,0.00022668,2]
[313351978,1707213031445,-728.4,0.00022694,2]
[313351979,1707213031454,-160.59,0.00022736,2]
[313351980,1707213031463,-1120.52864183,0.00022737,2]
[313351981,1707213031473,-735.99,0.00022768,2]
[313351982,1707213031482,-1000.0,0.000228,2]
[313351983,1707213031492,-499.99,0.000228,2]
[313351984,1707213031501,-300.0,0.00022814,2]
[313351985,1707213031510,-150.0,0.00022814,2]
[313351986,1707213031519,-29.46567971,0.00022815,2]
[313351987,1707213031530,-470.53432029,0.00022815,2]
[313351988,1707213031539,-307.16096505,0.00022815,2]
[313351989,1707213031550,-192.83903495,0.00022815,2]
[313351990,1707213031559,-200.0,0.00022815,2]
[313351991,1707213031568,-500.0,0.00022816,2]
[313351992,1707213031578,-442.43468565,0.00022816,2]
[313351993,1707213031589,-57.56531435,0.00022816,2]
[313351994,1707213031598,-500.0,0.00022816,2]
[313351995,1707213031607,-500.0,0.00022816,2]
[313351996,1707213031616,-500.0,0.00022816,2]
[313351997,1707213031626,-500.0,0.00022816,2]
[313351998,1707213031635,-365.18812658,0.00022816,2]
[313351999,1707213033943,207.0,0.00021879,2]
[313352004,1707213037425,-134.81187342,0.00022816,2]
[313352005,1707213037434,-200.0,0.00022816,2]
[313352006,1707213037444,-200.0,0.00022816,2]
[313352007,1707213037454,-1232.0,0.00022983,2]
[313352008,1707213037463,-3652.721,0.00022983,2]
[313352009,1707213037473,-4615.25437016,0.00022998,2]
[313352010,1707213037623,-336.07419278,0.00022998,2]
[313352011,1707213037633,-349.87986092,0.00022998,2]
[313352012,1707213037643,-1513.87987569,0.00022999,2]
[313352013,1707213037653,-20598.84992986,0.00022999,2]
[313352014,1707213037661,-11564.02163301,0.00023,2]
[313352028,1707213040156,-1162.60600965,0.00023,2]
[313352029,1707213040883,-683.57724213,0.00023,2]
[313352030,1707213040933,-28110.41783016,0.00023,2]
[313352031,1707213040944,-1425.15916734,0.00023,2]
[313352032,1707213040957,-1442.13438989,0.00023,2]
[313352035,1707213041994,-35174.14904868,0.00023,2]
[313352038,1707213042627,-756.93993785,0.00022999,2]
[313352039,1707213042638,-5179.38996511,0.00023,2]
[313352040,1707213042650,-3235.79764463,0.00023,2]
[313352041,1707213042662,-4188.34018533,0.00023,2]
[313352042,1707213042675,-379.02824574,0.00023,2]
[313352043,1707213042688,-11624.00169395,0.00023,2]
[313352053,1707213045429,-360.45183548,0.00023,2]
[313352056,1707213045442,-430.16363999,0.00023,2]
[313352060,1707213045652,-2756.8000224,0.00023,2]
[313352061,1707213117592,103819.955066,0.00027,30]
[313352062,1707213123925,315.44520218,0.00022998,3]
[313352063,1707213126043,342.9603637,0.00022078,2]
[313352064,1707213126063,281.65785222,0.00022078,2]
[313352065,1707213131681,3197.13386433,0.00022007,2]
[313352066,1707213137125,417.3967963,0.00020402,2]
[313352067,1707213137328,161.94573961,0.00022928,4]
[313352068,1707213138708,1828.97931683,0.00022236,2]
[313352069,1707213144767,305.93700454,0.00021778,2]
[313352070,1707213149909,175.59229432,0.00023,3]
[313352071,1707213150788,3133.39834862,0.00021778,2]
[313352073,1707213197151,756.36819678,0.00022999,3]
[313352074,1707213240052,162.37,0.00020091,2]
[313352075,1707213240294,162.37,0.00022355,2]
[313352076,1707213281671,159.69,0.00022184,2]
[313352077,1707213281892,159.69,0.00022415,2]
[313352078,1707213318639,384.28,0.00021983,2]
[313352079,1707213381657,200.0,0.00021995,2]
[313352080,1707213428455,5122.13,0.00021999,2]
[313352083,1707213568209,348.22179349,0.00022997,3]
[313352084,1707213598274,150.0,0.00021976,2]
[313352085,1707213598296,28.82,0.00021976,2]
[313352086,1707213610454,156.35913353,0.00021976,2]
[313352087,1707213610474,23.89086647,0.00021976,2]
[313352088,1707213641395,395.74683798,0.00022997,3]
[313352090,1707213685027,126.10913353,0.00020053,2]
[313352091,1707213685048,27.71086647,0.00020053,2]
[313352092,1707213685224,122.28913353,0.00022442,2]
[313352093,1707213685249,31.53086647,0.00022442,2]
[313352094,1707213699779,159.69,0.00022153,2]
[313352095,1707213812830,223.26580512,0.00021966,2]
[313352096,1707213812853,96.96419488,0.00021966,2]
[313352097,1707213866478,151.55,0.00021944,10]
[313352099,1707213912091,332.5876397,0.0002249,2]
[313352109,1707214031439,1000.0,0.00021972,2]
[313352110,1707214045326,180.25,0.0002196,2]
[313352111,1707214140934,153.82,0.00020019,2]
[313352112,1707214188105,159.69,0.00022113,2]
[313352122,1707214231863,-321.83542021,0.00022529,2]
[313352123,1707214231873,-273.40047181,0.00022529,2]
[313352124,1707214231883,-150.0,0.00022529,2]
[313352125,1707214231892,-150.0,0.00022529,2]
[313352126,1707214231901,-530.42750917,0.0002253,2]
[313352131,1707214237578,-346.34997035,0.0002253,2]
[313352132,1707214237588,-876.77747952,0.0002253,2]
[313352134,1707214237597,-86.16694917,0.0002253,2]
[313352135,1707214237682,-790.61053035,0.0002253,2]
[313352136,1707214237691,-876.77747952,0.0002253,2]
[313352137,1707214237700,-876.77747952,0.0002253,2]
[313352138,1707214237709,-4761.28633938,0.00022534,2]
[313352139,1707214237718,-4694.54704396,0.00022542,2]
[313352140,1707214237730,-2941.45295604,0.00022542,2]
[313352141,1707214237739,-159.69,0.00022689,2]
[313352142,1707214237749,-207.0,0.00022691,2]
[313352143,1707214237758,-153.82,0.00022707,2]
[313352144,1707214237767,-500.0,0.00022815,2]
[313352145,1707214237776,-200.0,0.00022815,2]
[313352146,1707214237785,-200.0,0.00022815,2]
[313352147,1707214237797,-500.0,0.00022815,2]
[313352148,1707214237806,-500.0,0.00022815,2]
[313352149,1707214237816,-499.99,0.00022815,2]
[313352150,1707214237825,-1349.89,0.00022815,2]
[313352151,1707214237835,-500.0,0.00022815,2]
[313352152,1707214237844,-500.0,0.00022816,2]
[313352153,1707214237853,-500.0,0.00022816,2]
[313352154,1707214237863,-500.0,0.00022816,2]
[313352155,1707214237873,-500.0,0.00022816,2]
[313352156,1707214237882,-500.0,0.00022816,2]
[313352157,1707214237891,-500.0,0.00022816,2]
[313352158,1707214237900,-159.98930037,0.00022816,2]
[313352159,1707214237912,-340.01069963,0.00022816,2]
[313352160,1707214237921,-88.31555161,0.00022816,2]
[313352161,1707214237940,-411.68444839,0.00022816,2]
[313352162,1707214237949,-200.0,0.00022816,2]
[313352163,1707214237958,-293.76095778,0.00022816,2]
[313352164,1707214237970,-206.23904222,0.00022816,2]
[313352165,1707214237979,-419.90394331,0.00022816,2]
[313352166,1707214237991,-80.09605669,0.00022816,2]
[313352167,1707214238000,-200.0,0.00022816,2]
[313352168,1707214238009,-62.73386554,0.00022826,2]
[313352169,1707214238034,-2076.62623446,0.00022826,2]
[313352171,1707214238044,-1074.2387,0.00022826,2]
[313352172,1707214238053,-174.02841244,0.000229,2]
[313352173,1707214238062,-4238.52912075,0.000229,2]
[313352174,1707214238071,-217.3162778,0.000229,2]
[313352175,1707214238081,-247.9177624,0.000229,2]
[313352176,1707214238090,-154.72526844,0.000229,2]
[313352177,1707214238099,-1400.03154618,0.000229,2]
[313352178,1707214238109,-191.95597055,0.000229,2]
[313352179,1707214238117,-187.42968264,0.000229,2]
[313352180,1707214238126,-164.1238035,0.00022924,2]
[313352181,1707214238135,-172.02314401,0.00022924,2]
[313352182,1707214238144,-238.43478419,0.00022925,2]
[313352183,1707214238153,-8941.39983971,0.00022926,2]
[313352187,1707214240266,-1196.90841001,0.00022926,2]
[313352188,1707214240277,-365.49689089,0.00022926,2]
[313352189,1707214240325,-1196.63849997,0.00022926,2]
[313352190,1707214240337,-8433.9711487,0.00022926,2]
[313352191,1707214240435,-484.29600592,0.00022926,2]
[313352192,1707214240492,-2283.81170497,0.00022926,2]
[313352193,1707214240504,-357.71235685,0.00022926,2]
[313352198,1707214241878,-1114.93680003,0.00022926,2]
[313352199,1707214241894,-541.16397787,0.00022926,2]
[313352213,1707214244762,-388.00861228,0.00022925,2]
[313352214,1707214244772,-3362.67400417,0.00022926,2]
[313352215,1707214244783,-2437.31074833,0.00022926,2]
[313352216,1707214244817,-3455.33281908,0.00022926,2]
[313352218,1707214245952,-302.29212228,0.00022926,2]
[313352219,1707214245965,-768.06384375,0.00022926,2]
[313352220,1707214245977,-11654.99999974,0.00022926,2]
[313352221,1707214245990,-7769.807823,0.00022926,2]
[313352222,1707214246007,-21486.49999999,0.00022926,2]
[313352223,1707214246019,-425.86724695,0.00022926,2]
[313352224,1707214246044,-15565.60955824,0.00022926,2]
[313352291,1707214278378,-155.0,0.00022899,2]
[313352292,1707214278399,-2290.89036211,0.000229,2]
[313352293,1707214278419,-3134.10963789,0.00022923,2]
[313352294,1707214299295,266.85,0.00022274,2]
[313352295,1707214332649,296.02,0.0002209,2]
[313352296,1707214350571,155.54,0.00022132,10]
[313352297,1707214462263,78139.0,0.00022317,2]
[313352298,1707214525341,200.0,0.00021982,2]
[313352299,1707214558019,14420.0,0.000225,2]
[313352300,1707214563031,14419.85,0.000225,2]
[313352301,1707214603775,161.08,0.00021988,2]
[313352302,1707214605882,153.82,0.00020172,2]
[313352303,1707214711772,158.27,0.00022114,2]
[313352304,1707214711975,158.27,0.00022203,2]
[313352305,1707214712178,158.27,0.00022292,2]
[313352306,1707214712392,158.27,0.0002238,2]
[313352307,1707214713017,158.27,0.00022469,2]
[313352308,1707214777152,155.54,0.00021909,10]
[313352309,1707214881159,222.37,0.00021894,2]
[313352310,1707214929582,200.0,0.00021918,2]
[313352311,1707214936884,840.0,0.00021971,2]
[313352312,1707214941513,150.0,0.00022,2]
[313352313,1707215028859,153.82,0.0001999,2]
[313352314,1707215132616,158.27,0.00022085,2]
[313352315,1707215132824,158.27,0.00022229,2]
[313352316,1707215133022,158.27,0.00022373,2]
[313352317,1707215148674,353.53872729,0.00023,30]
[313352319,1707215216101,155.54,0.00021921,10]
[313352320,1707215303932,178.82,0.0002192,2]
[313352321,1707215313748,185.3,0.00021919,2]
[313352322,1707215354765,328.0,0.0002191,2]
[313352330,1707215431785,-250.79953061,0.00022505,2]
[313352331,1707215431868,-249.20046939,0.00022505,2]
[313352332,1707215431878,-216.4526278,0.00022506,2]
[313352333,1707215431889,-520.73660721,0.00022506,2]
[313352334,1707215431900,-158.27,0.00022516,2]
[313352335,1707215431915,-157.66,0.00022647,2]
[313352336,1707215431925,-158.27,0.0002266,2]
[313352337,1707215431935,-161.74184478,0.00022705,2]
[313352338,1707215431945,-150.0,0.00022803,2]
[313352339,1707215431955,-300.0,0.00022803,2]
[313352340,1707215431967,-16830.238097,0.00022804,2]
[313352341,1707215431976,-158.27,0.00022804,2]
[313352342,1707215431986,-499.99,0.00022804,2]
[313352343,1707215431996,-158.34936841,0.00022805,2]
[313352344,1707215432009,-554.32063159,0.00022805,2]
[313352345,1707215432018,-314.71490896,0.00022805,2]
[313352346,1707215432030,-395.33509104,0.00022805,2]
[313352347,1707215432040,-732.49,0.00022806,2]
[313352348,1707215432049,-306.54438904,0.00022808,2]
[313352349,1707215432059,-200.0,0.00022815,2]
[313352350,1707215432068,-200.0,0.00022816,2]
[313352351,1707215432078,-315.58051992,0.00022824,2]
[313352352,1707215432089,-2830.04448008,0.00022824,2]
[313352353,1707215432104,-250.8997,0.00022824,2]
[313352354,1707215432113,-109.57818113,0.00022824,2]
[313352355,1707215432125,-960.69711887,0.00022824,2]
[313352356,1707215432135,-3002.6216242,0.00022826,2]
[313352358,1707215432167,-477.94521477,0.00022826,2]
[313352372,1707215437828,-191.63858603,0.00022504,2]
[313352373,1707215437837,-310.97974831,0.00022826,2]
[313352374,1707215437849,-1186.62788666,0.00022826,2]
[313352375,1707215437884,-436.800001,0.00022826,2]
[313352376,1707215438054,-380.45642506,0.00022826,2]
[313352377,1707215438063,-1518.44057494,0.00022848,2]
[313352378,1707215438075,-785.30699803,0.00022848,2]
[313352379,1707215438084,-154.72526839,0.000229,2]
[313352380,1707215438097,-165.27850825,0.000229,2]
[313352381,1707215438108,-1824.0,0.000229,2]
[313352382,1707215438118,-401.86977595,0.000229,2]
[313352383,1707215438128,-217.13404145,0.000229,2]
[313352384,1707215438139,-2308.59575347,0.00022923,2]
[313352385,1707215438148,-1541.9307905,0.00022923,2]
[313352405,1707215438359,-2517.62711126,0.00022923,2]
[313352407,1707215438369,-192.58309208,0.00022923,2]
[313352409,1707215438378,-189.78979966,0.00022923,2]
[313352411,1707215438390,-104.74251536,0.00022923,2]
[313352413,1707215438399,-218.95935509,0.00022923,2]
[313352415,1707215438408,-26.49923269,0.00022923,2]
[313352417,1707215438420,-129.64823387,0.00022923,2]
[313352418,1707215438429,-155.73093986,0.00022923,2]
[313352419,1707215438438,-155.0,0.00022923,2]
[313352420,1707215438447,-435.9247817,0.00022923,2]
[313352421,1707215438459,-776.34678519,0.00022923,2]
[313352422,1707215438469,-175.11526788,0.00022923,2]
[313352423,1707215438483,-828.39092032,0.00022923,2]
[313352424,1707215438497,-1000.98641663,0.00022923,2]
[313352425,1707215438510,-167.36016946,0.00022923,2]
[313352426,1707215438519,-562.17485463,0.00022923,2]
[313352427,1707215438528,-263.19645831,0.00022923,2]
[313352428,1707215440437,-104.0712578,0.00022923,2]
[313352429,1707215440448,-698.46857632,0.00022923,2]
[313352430,1707215440460,-233.82550788,0.00022923,2]
[313352431,1707215440470,-401.64065219,0.00022923,2]
[313352432,1707215440480,-1052.66597639,0.00022923,2]
[313352433,1707215440490,-283.3250881,0.00022923,2]
[313352434,1707215440501,-644.14940004,0.00022923,2]
[313352435,1707215440510,-197.29019107,0.00022923,2]
[313352436,1707215440520,-543.53122231,0.00022923,2]
[313352437,1707215440534,-178.30190912,0.00022923,2]
[313352438,1707215440544,-771.71029735,0.00022923,2]
[313352439,1707215440554,-3663.09875095,0.00022923,2]
[313352440,1707215440564,-1375.07063722,0.00022923,2]
[313352441,1707215440574,-497.6362364,0.00022923,2]
[313352442,1707215440584,-698.41762816,0.00022923,2]
[313352443,1707215440594,-155.0,0.00022923,2]
[313352444,1707215440604,-155.0,0.00022923,2]
[313352445,1707215440614,-1314.38519298,0.00022923,2]
[313352446,1707215440624,-1402.48848741,0.00022923,2]
[313352447,1707215440635,-369.14209189,0.00022923,2]
[313352448,1707215440645,-302.2103936,0.00022924,2]
[313352449,1707215440655,-622.21232072,0.00022924,2]
[313352450,1707215440665,-1040.43468736,0.00022924,2]
[313352451,1707215440675,-220.30306813,0.00022924,2]
[313352452,1707215440684,-158.30695886,0.00022924,2]
[313352453,1707215440694,-1179.44455971,0.00022924,2]
[313352454,1707215440703,-247.71451766,0.00022924,2]
[313352455,1707215440713,-217.42528837,0.00022924,2]
[313352456,1707215440722,-159.30807019,0.00022924,2]
[313352457,1707215440732,-171.6384234,0.00022924,2]
[313352458,1707215440742,-268.56411695,0.00022924,2]
[313352459,1707215440752,-1004.40670752,0.00022924,2]
[313352460,1707215440761,-187.06879032,0.00022924,2]
[313352461,1707215440771,-158.49370044,0.00022924,2]
[313352462,1707215440781,-307.23145274,0.00022924,2]
[313352463,1707215440790,-637.00641291,0.00022924,2]
[313352464,1707215440799,-161616.39579866,0.00022924,2]
[313352465,1707215440812,-372.46008747,0.00022924,2]
[313352466,1707215440824,-2102.7673685,0.00022924,2]
[313352467,1707215440836,-1404.82155403,0.00022924,2]
[313352468,1707215440851,-38346.95175151,0.00022924,2]
[313352469,1707215440869,-3723.81727995,0.00022924,2]
[313352470,1707215440881,-468.67992952,0.00022924,2]
[313352471,1707215440893,-489.84713216,0.00022924,2]
[313352472,1707215440905,-3291.39065368,0.00022924,2]
[313352473,1707215440917,-445.77293818,0.00022924,2]
[313352474,1707215440929,-1532.52828786,0.00022924,2]
[313352475,1707215440941,-1030.3714065,0.00022924,2]
[313352476,1707215440967,-567.06397,0.00022924,2]
[313352477,1707215440979,-1176.69046004,0.00022924,2]
[313352478,1707215440992,-295.43994429,0.00022924,2]
[313352479,1707215441002,-125.44005571,0.00022925,2]
[313352504,1707215442814,-89.36168112,0.00022925,2]
[313352506,1707215442823,-722.51961425,0.00022925,2]
[313352519,1707215442925,-3575.33602957,0.00022925,2]
[313352521,1707215442937,-9982.85481171,0.00022925,2]
[313352528,1707215442994,-20784.688547,0.00022925,2]
[313352531,1707215443156,-2033.14440631,0.00022925,2]
[313352532,1707215443169,-21568.67502877,0.00022925,2]
[313352533,1707215443180,-158.27,0.00022948,2]
[313352534,1707215443203,-1232.0,0.00022976,2]
[313352535,1707215443232,-200.0,0.00022997,2]
[313352536,1707215443243,-200.0,0.00022997,2]
[313352537,1707215443252,-155.52570026,0.00022998,2]
[313352538,1707215443262,-184.48898336,0.00022999,2]
[313352539,1707215443271,-378.46996892,0.00022999,2]
[313352540,1707215443281,-488.92621759,0.00022999,2]
[313352541,1707215443291,-1247.64561993,0.00022999,2]
[313352542,1707215443301,-500.0,0.00022999,2]
[313352543,1707215443311,-546.35360146,0.00022999,2]